[Event "Caplin Hastings Masters 2023-24"]
[Site "Hastings"]
[Date "2024.01.03"]
[Round "7.21"]
[White "Arkell, Keith C"]
[Black "Honey, Luke Anthony"]
[Result "1-0"]
[ECO "A11"]
[WhiteElo "2371"]
[BlackElo "1907"]
[Annotator "RC"]
[PlyCount "89"]
[EventDate "2023.12.18"]
[EventType "swiss"]
[EventCountry "ENG"]
[SourceTitle "playchess.com"]
[Source "ChessBase"]
[SourceQuality "1"]
[TimeControl "40/6000+30:3000+30"]

1. c4 {[%emt 0:00:06]} c6 {[%emt 0:00:26]} 2. Nf3 {[%emt 0:00:07]} d5 {[%emt 0:00:08]} 3. e3 {[%emt 0:00:06]} Nf6 {[%emt 0:00:07]} 4. b4 {[%emt 0:00:27]} Bg4 {[%emt 0:04:56]} 5. Bb2 {[%emt 0:00:12]} e6 {[%emt 0:00:37]} 6. a3 {[%emt 0:00:07]} Nbd7 {[%emt 0:00:52]} 7. Be2 {[%emt 0:00:15]} Bd6 {[%emt 0:01:09]} 8. d4 {[%emt 0:00:23]} Ne4 {[%emt 0:03:04]} 9. Nbd2 {[%emt 0:00:28]} f5 {[%emt 0:02:39]} 10. h3 {[%emt 0:01:59]} Bxf3 {[%emt 0:00:49]} 11. Nxf3 {[%emt 0:03:03]} O-O {[%emt 0:01:03]} 12. h4 {[%emt 0:02:43]} Qf6 {[%emt 0:04:28]} 13. g3 {[%emt 0:00:22]} Qh6 {[%emt 0:06:31]} 14. Ne5 {[%emt 0:01:05]} Ndf6 {[%emt 0:04:09]} 15. Bf3 {[%emt 0:05:02]} a5 {[%emt 0:08:42]} 16. b5 {[%emt 0:06:44]} cxb5 {[%emt 0:01:47]} 17. cxd5 {[%emt 0:00:23]} Bxe5 {[%emt 0:10:00]} 18. dxe5 {[%emt 0:00:26]} Nxd5 {[%emt 0:00:07]} 19. O-O {[%emt 0:09:57]} Rac8 {[%emt 0:05:05]} 20. Qe2 {[%emt 0:05:52]} Rc4 {[%emt 0:05:08]} 21. Rfc1 {[%emt 0:09:54]} Rfc8 {[%emt 0:11:20]} 22. a4 {[%emt 0:11:56]} Ndc3 {[%emt 0:08:50]} 23. Bxc3 {[%emt 0:11:33]} Nxc3 {[%emt 0:02:17]} 24. Qd2 {[%emt 0:03:29]} b4 {[%emt 0:02:56]} 25. Kg2 {[%emt 0:05:51]} R8c7 {[%emt 0:04:15]} 26. Rc2 {[%emt 0:08:26]} g6 {[%emt 0:01:45]} 27. Qd6 {[%emt 0:01:21]} Kf7 {[%emt 0:00:29]} 28. Qb6 {[%emt 0:00:54]} R4c5 {[%emt 0:00:35]} 29. Rd2 {[%emt 0:04:48]} Qf8 {[%emt 0:01:30]} 30. Rd6 {[%emt 0:00:30]} Qe7 {[%emt 0:01:21]} 31. h5 {[%emt 0:11:46]} Rxe5 {[%emt 0:04:35]} 32. hxg6+ {[%emt 0:00:05]} hxg6 {[%emt 0:00:07]} 33. Rh1 {[%emt 0:00:43]} Kf6 {[%emt 0:01:32]} 34. Qd4 {[%emt 0:00:20]} Nd5 {[%emt 0:01:20]} 35. Rh7 {[%emt 0:01:31]} Qxh7 {[%emt 0:08:31]} 36. Bxd5 {[%emt 0:00:11]} Qe7 {[%emt 0:02:30]} 37. Bb3 {[%emt 0:02:51]} Qxd6 {[%emt 0:01:34]} 38. Qxd6 {[%emt 0:00:02]} Rec5 {[%emt 0:00:26]} 39. Qxe6+ {[%emt 0:00:19]} Kg7 {[%emt 0:00:11]} 40. Qg8+ {[%emt 0:00:10]} Kf6 {[%emt 0:00:57]} 41. Qf8+ {[%emt 0:53:30]} Ke5 {[%emt 0:02:28]} 42. Qe8+ {[%emt 0:00:00]} Kf6 {[%emt 0:00:31]} 43. f4 {[%emt 0:00:00]} g5 {[%emt 0:02:26]} 44. Qe6+ {[%emt 0:00:00]} Kg7 {[%emt 0:00:08]} 45. Qg8+ {[%emt 0:00:00]} 1-0

[Event "Caplin Hastings Masters 2023-24"]
[Site "Hastings"]
[Date "2024.01.03"]
[Round "7.22"]
[White "Sugden, John N"]
[Black "Rudd, Jack"]
[Result "0-1"]
[ECO "B13"]
[WhiteElo "1968"]
[BlackElo "2314"]
[Annotator "RC"]
[PlyCount "110"]
[EventDate "2023.12.18"]
[EventType "swiss"]
[EventCountry "ENG"]
[SourceTitle "playchess.com"]
[Source "ChessBase"]
[SourceQuality "1"]
[TimeControl "40/6000+30:3000+30"]

1. e4 {[%emt 0:00:25]} c6 {[%emt 0:00:04]} 2. d4 {[%emt 0:00:17]} d5 {[%emt 0:00:05]} 3. exd5 {[%emt 0:01:58]} cxd5 {[%emt 0:00:09]} 4. Bd3 {[%emt 0:00:32]} Nc6 {[%emt 0:00:06]} 5. c3 {[%emt 0:00:28]} Nf6 {[%emt 0:00:07]} 6. Bf4 {[%emt 0:02:47]} g6 {[%emt 0:01:33]} 7. Nd2 {[%emt 0:04:35]} Bf5 {[%emt 0:00:37]} 8. Bxf5 {[%emt 0:08:02]} gxf5 {[%emt 0:00:17]} 9. Qb3 {[%emt 0:05:16]} Qd7 {[%emt 0:00:59]} 10. Ne2 {[%emt 0:03:55]} e6 {[%emt 0:01:03]} 11. Nf3 {[%emt 0:06:14]} Ne4 {[%emt 0:01:13]} 12. Ne5 {[%emt 0:07:39]} Nxe5 {[%emt 0:00:31]} 13. Bxe5 {[%emt 0:01:05]} Rg8 {[%emt 0:00:07]} 14. f3 {[%emt 0:04:58]} Nd6 {[%emt 0:00:22]} 15. Bxd6 {[%emt 0:01:56]} Bxd6 {[%emt 0:00:09]} 16. O-O {[%emt 0:02:00]} Qc7 {[%emt 0:01:04]} 17. f4 {[%emt 0:03:41]} Qc6 {[%emt 0:01:57]} 18. Rad1 {[%emt 0:04:16]} b5 {[%emt 0:01:36]} 19. Nc1 {[%emt 0:02:59]} a5 {[%emt 0:01:34]} 20. a3 {[%emt 0:04:46]} Qc4 {[%emt 0:00:39]} 21. Rd2 {[%emt 0:08:45]} Ke7 {[%emt 0:01:03]} 22. Qd1 {[%emt 0:02:09]} b4 {[%emt 0:00:56]} 23. cxb4 {[%emt 0:08:33]} axb4 {[%emt 0:00:31]} 24. Rc2 {[%emt 0:00:38]} Qb5 {[%emt 0:00:11]} 25. axb4 {[%emt 0:00:43]} Qxb4 {[%emt 0:00:28]} 26. Ne2 {[%emt 0:05:01]} Rac8 {[%emt 0:01:53]} 27. Qd3 {[%emt 0:02:18]} Rxc2 {[%emt 0:00:12]} 28. Qxc2 {[%emt 0:00:11]} Rb8 {[%emt 0:00:06]} 29. Rb1 {[%emt 0:03:45]} Qb3 {[%emt 0:00:54]} 30. Qxb3 {[%emt 0:02:14]} Rxb3 {[%emt 0:00:09]} 31. Kf2 {[%emt 0:00:48]} Ba3 {[%emt 0:03:59]} 32. Ra1 {[%emt 0:00:42]} Bxb2 {[%emt 0:00:09]} 33. Ra7+ {[%emt 0:00:25]} Kf6 {[%emt 0:00:06]} 34. Ra4 {[%emt 0:02:29]} Ba3 {[%emt 0:00:56]} 35. Ra7 {[%emt 0:03:46]} Bb4 {[%emt 0:01:37]} 36. Ra4 {[%emt 0:01:20]} Bd2 {[%emt 0:00:49]} 37. g3 {[%emt 0:01:23]} Be3+ {[%emt 0:00:21]} 38. Kg2 {[%emt 0:01:05]} Rd3 {[%emt 0:01:01]} 39. Rb4 {[%emt 0:01:20]} Ra3 {[%emt 0:00:13]} 40. Rb1 {[%emt 0:01:55]} h5 {[%emt 0:01:26]} 41. Rd1 {[%emt 0:50:54]} Kg6 {[%emt 0:50:25]} 42. Rb1 {[%emt 0:01:01]} h4 {[%emt 0:00:25]} 43. Rd1 {[%emt 0:00:21]} Rb3 {[%emt 0:01:47]} 44. Ra1 {[%emt 0:00:39]} h3+ {[%emt 0:00:28]} 45. Kxh3 {[%emt 0:00:51]} Rb2 {[%emt 0:00:07]} 46. Ng1 {[%emt 0:00:13]} Bxd4 {[%emt 0:00:09]} 47. Rd1 {[%emt 0:00:55]} Bxg1 {[%emt 0:00:35]} 48. Rxg1 {[%emt 0:00:06]} Kf6 {[%emt 0:00:24]} 49. Re1 {[%emt 0:01:04]} Ke7 {[%emt 0:00:07]} 50. Rg1 {[%emt 0:00:12]} Kd6 {[%emt 0:00:06]} 51. g4 {[%emt 0:00:15]} fxg4+ {[%emt 0:01:31]} 52. Rxg4 {[%emt 0:00:08]} d4 {[%emt 0:00:34]} 53. Rg8 {[%emt 0:00:54]} Kd5 {[%emt 0:00:12]} 54. Kg3 {[%emt 0:00:50]} Ke4 {[%emt 0:00:11]} 55. h4 {[%emt 0:00:53]} Rb3+ {[%emt 0:00:19]} 0-1

[Event "Caplin Hastings Masters 2023-24"]
[Site "Hastings"]
[Date "2024.01.03"]
[Round "7.23"]
[White "Sarkar, Justin"]
[Black "Suez-Panama, Gilles"]
[Result "1-0"]
[ECO "C11"]
[WhiteElo "2272"]
[BlackElo "1868"]
[Annotator "RC"]
[PlyCount "87"]
[EventDate "2023.12.18"]
[EventType "swiss"]
[EventCountry "ENG"]
[SourceTitle "playchess.com"]
[Source "ChessBase"]
[SourceQuality "1"]
[TimeControl "40/6000+30:3000+30"]

1. e4 {[%emt 0:00:22]} e6 {[%emt 0:00:16]} 2. d4 {[%emt 0:00:09]} d5 {[%emt 0:00:06]} 3. Nc3 {[%emt 0:00:56]} Nf6 {[%emt 0:01:08]} 4. e5 {[%emt 0:00:45]} Nfd7 {[%emt 0:00:10]} 5. f4 {[%emt 0:00:25]} c5 {[%emt 0:00:13]} 6. Nf3 {[%emt 0:00:10]} Nc6 {[%emt 0:00:10]} 7. Be3 {[%emt 0:00:14]} a6 {[%emt 0:00:29]} 8. Be2 {[%emt 0:09:07]} Be7 {[%emt 0:00:30]} 9. O-O {[%emt 0:01:39]} O-O {[%emt 0:02:36]} 10. dxc5 {[%emt 0:12:21]} Bxc5 {[%emt 0:01:10]} 11. Bxc5 {[%emt 0:01:37]} Nxc5 {[%emt 0:00:04]} 12. Kh1 {[%emt 0:01:47]} d4 {[%emt 0:14:18]} 13. Nb1 {[%emt 0:00:27]} f6 {[%emt 0:02:26]} 14. Nbd2 {[%emt 0:02:33]} b5 {[%emt 0:07:33]} 15. Nb3 {[%emt 0:04:07]} Nxb3 {[%emt 0:02:10]} 16. axb3 {[%emt 0:00:11]} Bb7 {[%emt 0:00:29]} 17. Bd3 {[%emt 0:01:12]} Qe8 {[%emt 0:08:13]} 18. exf6 {[%emt 0:02:32]} gxf6 {[%emt 0:12:07]} 19. Be4 {[%emt 0:07:57]} Rd8 {[%emt 0:00:17]} 20. Qe1 {[%emt 0:00:25]} Rf7 {[%emt 0:13:18]} 21. Rd1 {[%emt 0:03:30]} Rg7 {[%emt 0:03:04]} 22. Qh4 {[%emt 0:00:59]} f5 {[%emt 0:07:19]} 23. Bxc6 {[%emt 0:02:11]} Bxc6 {[%emt 0:00:07]} 24. Rf2 {[%emt 0:02:34]} Rg4 {[%emt 0:06:01]} 25. Qf6 {[%emt 0:00:41]} Rg6 {[%emt 0:09:53]} 26. Qe5 {[%emt 0:00:19]} Rd5 {[%emt 0:04:14]} 27. Qe1 {[%emt 0:03:36]} Rh6 {[%emt 0:02:04]} 28. Kg1 {[%emt 0:13:47]} Qh5 {[%emt 0:04:05]} 29. h3 {[%emt 0:01:15]} Rg6 {[%emt 0:01:25]} 30. Kh2 {[%emt 0:04:30]} Bb7 {[%emt 0:08:12]} 31. Rxd4 {[%emt 0:08:59]} Rxd4 {[%emt 0:00:27]} 32. Nxd4 {[%emt 0:00:05]} Be4 {[%emt 0:00:47]} 33. Nf3 {[%emt 0:04:17]} Qh6 {[%emt 0:01:01]} 34. Qd2 {[%emt 0:03:21]} Qf8 {[%emt 0:00:30]} 35. Ne5 {[%emt 0:02:43]} Rg7 {[%emt 0:00:01]} 36. Qa5 {[%emt 0:02:07]} Qa8 {[%emt 0:00:58]} 37. Qb6 {[%emt 0:01:50]} Bd5 {[%emt 0:00:27]} 38. c4 {[%emt 0:00:53]} bxc4 {[%emt 0:00:34]} 39. bxc4 {[%emt 0:00:10]} Rxg2+ {[%emt 0:00:32]} 40. Rxg2+ {[%emt 0:00:05]} Bxg2 {[%emt 0:00:07]} 41. Qxe6+ {[%emt 0:50:07]} Kg7 {[%emt 0:02:59]} 42. Qe7+ {[%emt 0:00:00]} Kg8 {[%emt 0:00:20]} 43. Qg5+ {[%emt 0:00:00]} Kh8 {[%emt 0:00:22]} 44. Nf7# {[%emt 0:00:39]} 1-0

[Event "Caplin Hastings Masters 2023-24"]
[Site "Hastings"]
[Date "2024.01.03"]
[Round "7.24"]
[White "Southcott-Moyers, Indy"]
[Black "Boggarapu, Kritan"]
[Result "1-0"]
[ECO "E07"]
[WhiteElo "2123"]
[BlackElo "1857"]
[Annotator "NA RC"]
[PlyCount "81"]
[EventDate "2023.12.18"]
[EventType "swiss"]
[EventCountry "ENG"]
[SourceTitle "playchess.com"]
[Source "ChessBase"]
[SourceQuality "1"]
[TimeControl "40/6000+30:3000+30"]

1. d4 {[%emt 0:00:01]} d5 {[%emt 0:00:03]} 2. c4 {[%emt 0:00:05]} c6 {[%emt 0:00:03]} 3. Nf3 {[%emt 0:00:03]} Nf6 {[%emt 0:00:06]} 4. Nc3 {[%emt 0:00:04]} e6 {[%emt 0:00:05]} 5. g3 {[%emt 0:00:21]} dxc4 {[%emt 0:00:47]} 6. Bg2 {[%emt 0:02:21]} Nbd7 {[%emt 0:03:32]} 7. O-O {[%emt 0:06:46]} Be7 {[%emt 0:01:49]} 8. a4 {[%emt 0:04:00]} O-O {[%emt 0:03:27]} 9. e4 {[%emt 0:03:16]} b6 {[%emt 0:09:45]} 10. Qe2 {[%emt 0:06:43]} a5 {[%emt 0:02:53]} 11. Rd1 {[%emt 0:00:18]} Ba6 {[%emt 0:03:21]} 12. Nd2 {[%emt 0:16:33]} e5 {[%emt 0:43:40]} 13. Nf3 {[%emt 0:09:35]} Qc7 {[%emt 0:07:20]} 14. dxe5 {[%emt 0:15:33]} Ng4 {[%emt 0:11:20]} 15. Bh3 {[%emt 0:18:37]} Ngxe5 {[%emt 0:04:56]} 16. Bf4 {[%emt 0:01:42]} Nxf3+ {[%emt 0:02:38]} 17. Qxf3 {[%emt 0:00:07]} Ne5 {[%emt 0:00:05]} 18. Qh5 {[%emt 0:04:03]} Bf6 {[%emt 0:00:16]} 19. Rd7 {[%emt 0:03:05]} Qb8 {[%emt 0:00:10]} 20. Rd2 {[%emt 0:01:46]} g6 {[%emt 0:02:46]} 21. Qe2 {[%emt 0:00:32]} Qe8 {[%emt 0:04:05]} 22. Bxe5 {[%emt 0:03:35]} Qxe5 {[%emt 0:00:08]} 23. Rad1 {[%emt 0:00:26]} Rad8 {[%emt 0:01:51]} 24. Bd7 {[%emt 0:00:28]} Qc5 {[%emt 0:00:52]} 25. Rd6 {[%emt 0:04:36]} Bxc3 {[%emt 0:03:43]} 26. bxc3 {[%emt 0:00:07]} Bb7 {[%emt 0:00:22]} 27. e5 {[%emt 0:00:54]} Kh8 {[%emt 0:00:43]} 28. Qe4 {[%emt 0:03:17]} h6 {[%emt 0:02:04]} 29. Qf4 {[%emt 0:02:51]} Kh7 {[%emt 0:00:08]} 30. R1d4 {[%emt 0:02:00]} b5 {[%emt 0:00:14]} 31. Qf6 {[%emt 0:01:13]} Qa3 {[%emt 0:00:48]} 32. Rg4 {[%emt 0:00:59]} c5 {[%emt 0:00:42]} 33. f3 {[%emt 0:00:29]} Qc1+ {[%emt 0:00:10]} 34. Kg2 {[%emt 0:00:07]} Qc2+ {[%emt 0:00:04]} 35. Kh3 {[%emt 0:00:45]} Qb1 {[%emt 0:01:00]} 36. Kh4 {[%emt 0:00:39]} g5+ {[%emt 0:01:05]} 37. Rxg5 {[%emt 0:00:26]} hxg5+ {[%emt 0:00:08]} 38. Qxg5 {[%emt 0:00:07]} f6 {[%emt 0:00:16]} 39. Bf5+ {[%emt 0:00:15]} Kh8 {[%emt 0:00:14]} 40. Qh6+ {[%emt 0:00:04]} Kg8 {[%emt 0:00:05]} 41. Qh7# {[%emt 0:50:09]} 1-0

[Event "Caplin Hastings Masters 2023-24"]
[Site "Hastings"]
[Date "2024.01.03"]
[Round "7.25"]
[White "Ahn, Sungmin"]
[Black "Gimenez Menchon, Cesar"]
[Result "0-1"]
[ECO "B07"]
[WhiteElo "1836"]
[BlackElo "2088"]
[Annotator "NA RC"]
[PlyCount "90"]
[EventDate "2023.12.18"]
[EventType "swiss"]
[EventCountry "ENG"]
[SourceTitle "playchess.com"]
[Source "ChessBase"]
[SourceQuality "1"]
[TimeControl "40/6000+30:3000+30"]

1. e4 {[%emt 0:00:05]} d6 {[%emt 0:01:46]} 2. d4 {[%emt 0:00:06]} Nf6 {[%emt 0:00:07]} 3. Nc3 {[%emt 0:00:10]} e5 {[%emt 0:00:02]} 4. Nge2 {[%emt 0:00:07]} Be7 {[%emt 0:01:35]} 5. f3 {[%emt 0:00:12]} O-O {[%emt 0:00:40]} 6. Be3 {[%emt 0:00:26]} exd4 {[%emt 0:02:47]} 7. Qxd4 {[%emt 0:02:08]} Nc6 {[%emt 0:03:29]} 8. Qd2 {[%emt 0:00:08]} Re8 {[%emt 0:07:07]} 9. O-O-O {[%emt 0:01:11]} a6 {[%emt 0:00:56]} 10. Nf4 {[%emt 0:07:05]} Bf8 {[%emt 0:08:58]} 11. g4 {[%emt 0:01:58]} Ne5 {[%emt 0:04:23]} 12. Qg2 {[%emt 0:02:14]} Nxf3 {[%emt 0:06:51]} 13. Qxf3 {[%emt 0:11:09]} Bxg4 {[%emt 0:00:11]} 14. Qg2 {[%emt 0:00:33]} Bxd1 {[%emt 0:00:21]} 15. Kxd1 {[%emt 0:01:08]} d5 {[%emt 0:03:03]} 16. Bd2 {[%emt 0:07:28]} dxe4 {[%emt 0:04:57]} 17. Kc1 {[%emt 0:00:40]} e3 {[%emt 0:00:47]} 18. Be1 {[%emt 0:00:10]} Qd6 {[%emt 0:01:28]} 19. Bg3 {[%emt 0:02:23]} Qb4 {[%emt 0:09:57]} 20. Nfd5 {[%emt 0:03:40]} Nxd5 {[%emt 0:00:27]} 21. Nxd5 {[%emt 0:00:52]} Qa5 {[%emt 0:07:03]} 22. Bc4 {[%emt 0:39:37]} e2 {[%emt 0:06:51]} 23. Be1 {[%emt 0:12:38]} Qc5 {[%emt 0:00:06]} 24. Bd3 {[%emt 0:06:18]} Kh8 {[%emt 0:08:23]} 25. Qh3 {[%emt 0:01:08]} g6 {[%emt 0:02:41]} 26. Nf6 {[%emt 0:07:04]} Qg5+ {[%emt 0:01:38]} 27. Kb1 {[%emt 0:00:28]} Qxf6 {[%emt 0:00:41]} 28. Bc3 {[%emt 0:00:15]} e1=Q+ {[%emt 0:00:38]} 29. Rxe1 {[%emt 0:00:41]} Rxe1+ {[%emt 0:00:24]} 30. Bxe1 {[%emt 0:00:03]} Bg7 {[%emt 0:01:28]} 31. c3 {[%emt 0:00:31]} Re8 {[%emt 0:01:03]} 32. Bd2 {[%emt 0:00:33]} Rd8 {[%emt 0:02:44]} 33. Kc2 {[%emt 0:00:01]} Qe6 {[%emt 0:01:01]} 34. Qh4 {[%emt 0:00:38]} Qd5 {[%emt 0:00:18]} 35. Qg3 {[%emt 0:00:23]} c5 {[%emt 0:01:56]} 36. b3 {[%emt 0:00:30]} h6 {[%emt 0:01:17]} 37. Qh3 {[%emt 0:01:32]} Kh7 {[%emt 0:00:19]} 38. Qe3 {[%emt 0:00:20]} b5 {[%emt 0:01:32]} 39. h4 {[%emt 0:00:27]} b4 {[%emt 0:02:32]} 40. Bxa6 {[%emt 0:02:55]} bxc3 {[%emt 0:03:40]} 41. Bxc3 {[%emt 0:00:35]} Qd1+ {[%emt 0:00:12]} 42. Kb2 {[%emt 0:00:12]} Rd2+ {[%emt 0:00:18]} 43. Ka3 {[%emt 0:01:05]} Qc1+ {[%emt 0:00:06]} 44. Ka4 {[%emt 0:00:51]} Rxa2+ {[%emt 0:00:09]} 45. Kb5 {[%emt 0:00:07]} Qxe3 {[%emt 0:00:05]} 0-1

[Event "Caplin Hastings Masters 2023-24"]
[Site "Hastings"]
[Date "2024.01.03"]
[Round "7.26"]
[White "Lahlum, Hans Olav"]
[Black "Flynn, David"]
[Result "1-0"]
[ECO "A57"]
[WhiteElo "2037"]
[BlackElo "1791"]
[Annotator "NA RC"]
[PlyCount "57"]
[EventDate "2023.12.18"]
[EventType "swiss"]
[EventCountry "ENG"]
[SourceTitle "playchess.com"]
[Source "ChessBase"]
[SourceQuality "1"]
[TimeControl "40/6000+30:3000+30"]

1. d4 {[%emt 0:00:01]} Nf6 {[%emt 0:07:14]} 2. c4 {[%emt 0:00:05]} c5 {[%emt 0:00:03]} 3. d5 {[%emt 0:00:05]} b5 {[%emt 0:00:09]} 4. cxb5 {[%emt 0:00:05]} a6 {[%emt 0:00:06]} 5. f3 {[%emt 0:00:11]} e6 {[%emt 0:00:58]} 6. e4 {[%emt 0:00:17]} exd5 {[%emt 0:00:15]} 7. e5 {[%emt 0:00:07]} Qe7 {[%emt 0:00:27]} 8. Qe2 {[%emt 0:00:07]} Ng8 {[%emt 0:00:07]} 9. Nc3 {[%emt 0:00:08]} Bb7 {[%emt 0:00:54]} 10. Nh3 {[%emt 0:00:10]} c4 {[%emt 0:01:20]} 11. Nf4 {[%emt 0:00:21]} Qc5 {[%emt 0:22:53]} 12. Nfxd5 {[%emt 0:00:47]} axb5 {[%emt 0:09:34]} 13. Be3 {[%emt 0:07:12]} Qc6 {[%emt 0:00:30]} 14. Nxb5 {[%emt 0:02:16]} Na6 {[%emt 0:00:04]} 15. Nbc3 {[%emt 0:03:52]} Nb4 {[%emt 0:28:27]} 16. Nxb4 {[%emt 0:00:33]} Bxb4 {[%emt 0:00:04]} 17. Bd2 {[%emt 0:01:16]} Ba6 {[%emt 0:03:37]} 18. g3 {[%emt 0:07:44]} Ne7 {[%emt 0:01:13]} 19. Bg2 {[%emt 0:01:45]} Qb6 {[%emt 0:01:40]} 20. f4 {[%emt 0:09:51]} Rb8 {[%emt 0:00:26]} 21. Be3 {[%emt 0:14:48]} Qa5 {[%emt 0:01:05]} 22. Qd2 {[%emt 0:03:18]} Bb7 {[%emt 0:10:57]} 23. Bxb7 {[%emt 0:06:46]} Rxb7 {[%emt 0:00:06]} 24. O-O {[%emt 0:00:38]} O-O {[%emt 0:02:37]} 25. Rfd1 {[%emt 0:06:09]} Nf5 {[%emt 0:02:00]} 26. Bf2 {[%emt 0:00:31]} Rfb8 {[%emt 0:04:04]} 27. Qc2 {[%emt 0:05:43]} Ne7 {[%emt 0:00:19]} 28. Ne4 {[%emt 0:00:52]} Rc7 {[%emt 0:03:26]} 29. a3 {[%emt 0:01:54]} 1-0

[Event "Caplin Hastings Masters 2023-24"]
[Site "Hastings"]
[Date "2024.01.03"]
[Round "7.27"]
[White "Sivanandan, Bodhana"]
[Black "White, Stuart A"]
[Result "1/2-1/2"]
[ECO "C07"]
[WhiteElo "1857"]
[BlackElo "2014"]
[Annotator "NA RC"]
[PlyCount "117"]
[EventDate "2023.12.18"]
[EventType "swiss"]
[EventCountry "ENG"]
[SourceTitle "playchess.com"]
[Source "ChessBase"]
[SourceQuality "1"]
[TimeControl "40/6000+30:3000+30"]

1. e4 {[%emt 0:01:41]} e6 {[%emt 0:00:12]} 2. d4 {[%emt 0:00:22]} d5 {[%emt 0:00:06]} 3. Nd2 {[%emt 0:00:56]} c5 {[%emt 0:00:15]} 4. exd5 {[%emt 0:00:38]} Qxd5 {[%emt 0:00:14]} 5. Ngf3 {[%emt 0:00:32]} cxd4 {[%emt 0:00:29]} 6. Bc4 {[%emt 0:00:34]} Qd6 {[%emt 0:00:07]} 7. O-O {[%emt 0:01:08]} Nf6 {[%emt 0:00:17]} 8. Nb3 {[%emt 0:01:02]} Nc6 {[%emt 0:00:12]} 9. Nbxd4 {[%emt 0:00:37]} Nxd4 {[%emt 0:00:14]} 10. Nxd4 {[%emt 0:00:19]} Be7 {[%emt 0:01:13]} 11. c3 {[%emt 0:05:33]} Bd7 {[%emt 0:07:02]} 12. Be3 {[%emt 0:05:51]} O-O {[%emt 0:06:03]} 13. Qf3 {[%emt 0:08:47]} Qc7 {[%emt 0:08:05]} 14. Bd3 {[%emt 0:05:51]} Bd6 {[%emt 0:12:07]} 15. h3 {[%emt 0:03:38]} a6 {[%emt 0:01:30]} 16. Rad1 {[%emt 0:04:29]} Rfe8 {[%emt 0:12:52]} 17. Bg5 {[%emt 0:09:30]} Bh2+ {[%emt 0:05:24]} 18. Kh1 {[%emt 0:00:16]} Be5 {[%emt 0:00:03]} 19. Bxf6 {[%emt 0:05:41]} Bxf6 {[%emt 0:00:32]} 20. Nb3 {[%emt 0:02:10]} Bc6 {[%emt 0:05:22]} 21. Be4 {[%emt 0:02:48]} Bxe4 {[%emt 0:02:37]} 22. Qxe4 {[%emt 0:00:11]} Red8 {[%emt 0:00:46]} 23. Qf3 {[%emt 0:04:24]} b5 {[%emt 0:08:42]} 24. Rxd8+ {[%emt 0:13:21]} Rxd8 {[%emt 0:00:53]} 25. Rd1 {[%emt 0:00:49]} Rxd1+ {[%emt 0:14:12]} 26. Qxd1 {[%emt 0:00:10]} Kf8 {[%emt 0:00:23]} 27. Kg1 {[%emt 0:02:45]} Ke7 {[%emt 0:02:41]} 28. Kf1 {[%emt 0:02:40]} Qc6 {[%emt 0:03:53]} 29. Qd3 {[%emt 0:03:35]} h6 {[%emt 0:01:35]} 30. Qe3 {[%emt 0:01:34]} Kd6 {[%emt 0:05:48]} 31. Nd2 {[%emt 0:02:09]} Kd7 {[%emt 0:03:12]} 32. Qa7+ {[%emt 0:01:45]} Ke8 {[%emt 0:00:14]} 33. Qb8+ {[%emt 0:01:14]} Bd8 {[%emt 0:00:33]} 34. Qe5 {[%emt 0:01:22]} f6 {[%emt 0:01:44]} 35. Qe4 {[%emt 0:00:45]} Qxe4 {[%emt 0:00:53]} 36. Nxe4 {[%emt 0:00:06]} Bb6 {[%emt 0:01:32]} 37. c4 {[%emt 0:02:33]} bxc4 {[%emt 0:03:14]} 38. Nd6+ {[%emt 0:00:09]} Kd7 {[%emt 0:00:07]} 39. Nxc4 {[%emt 0:00:04]} Bd4 {[%emt 0:00:47]} 40. Ke2 {[%emt 0:00:38]} Kc6 {[%emt 0:01:19]} 41. f3 {[%emt 0:51:30]} h5 {[%emt 0:13:44]} 42. Kd3 {[%emt 0:00:00]} Ba7 {[%emt 0:05:38]} 43. g4 {[%emt 0:00:00]} hxg4 {[%emt 0:00:18]} 44. hxg4 {[%emt 0:00:00]} Kd5 {[%emt 0:01:29]} 45. b4 {[%emt 0:00:00]} f5 {[%emt 0:06:37]} 46. a4 {[%emt 0:00:00]} g6 {[%emt 0:03:56]} 47. b5 {[%emt 0:00:00]} axb5 {[%emt 0:02:01]} 48. axb5 {[%emt 0:00:00]} e5 {[%emt 0:02:04]} 49. gxf5 {[%emt 0:00:00]} gxf5 {[%emt 0:00:56]} 50. b6 {[%emt 0:00:00]} Bb8 {[%emt 0:02:38]} 51. Ne3+ {[%emt 0:00:00]} Ke6 {[%emt 0:04:23]} 52. Kc4 {[%emt 0:00:00]} e4 {[%emt 0:01:42]} 53. fxe4 {[%emt 0:00:00]} fxe4 {[%emt 0:00:05]} 54. Kd4 {[%emt 0:00:00]} Kd6 {[%emt 0:00:07]} 55. Kxe4 {[%emt 0:00:00]} Kc6 {[%emt 0:00:28]} 56. Nd5 {[%emt 0:00:00]} Bh2 {[%emt 0:01:35]} 57. Kd4 {[%emt 0:00:00]} Bg1+ {[%emt 0:00:03]} 58. Kc4 {[%emt 0:00:00]} Bxb6 {[%emt 0:00:06]} 59. Nxb6 {[%emt 0:00:00]} 1/2-1/2

[Event "Caplin Hastings Masters 2023-24"]
[Site "Hastings"]
[Date "2024.01.03"]
[Round "7.28"]
[White "Thompson, Ian D"]
[Black "Nainika, Gupta"]
[Result "1-0"]
[ECO "A29"]
[WhiteElo "2011"]
[BlackElo "1543"]
[Annotator "NA RC"]
[PlyCount "49"]
[EventDate "2023.12.18"]
[EventType "swiss"]
[EventCountry "ENG"]
[SourceTitle "playchess.com"]
[Source "ChessBase"]
[SourceQuality "1"]
[TimeControl "40/6000+30:3000+30"]

1. c4 {[%emt 0:00:02]} e5 {[%emt 0:00:59]} 2. Nc3 {[%emt 0:00:35]} Nf6 {[%emt 0:00:27]} 3. Nf3 {[%emt 0:00:41]} Nc6 {[%emt 0:01:15]} 4. g3 {[%emt 0:00:43]} d5 {[%emt 0:01:39]} 5. cxd5 {[%emt 0:00:21]} Nxd5 {[%emt 0:00:39]} 6. Bg2 {[%emt 0:00:54]} Nb6 {[%emt 0:00:53]} 7. O-O {[%emt 0:00:29]} Be7 {[%emt 0:00:53]} 8. b3 {[%emt 0:01:36]} Bg4 {[%emt 0:02:56]} 9. Bb2 {[%emt 0:02:32]} O-O {[%emt 0:01:35]} 10. a3 {[%emt 0:14:36]} Qd7 {[%emt 0:04:30]} 11. Rc1 {[%emt 0:00:47]} Bh3 {[%emt 0:05:42]} 12. d3 {[%emt 0:03:22]} Bxg2 {[%emt 0:01:06]} 13. Kxg2 {[%emt 0:00:03]} Rad8 {[%emt 0:01:42]} 14. b4 {[%emt 0:01:24]} a6 {[%emt 0:07:45]} 15. Ne4 {[%emt 0:03:34]} Qd5 {[%emt 0:06:35]} 16. Nc5 {[%emt 0:16:07]} Rb8 {[%emt 0:04:09]} 17. e4 {[%emt 0:08:48]} Qd6 {[%emt 0:01:54]} 18. Qc2 {[%emt 0:05:16]} Nd4 {[%emt 0:21:00]} 19. Nxd4 {[%emt 0:01:46]} exd4 {[%emt 0:02:10]} 20. Nb3 {[%emt 0:00:23]} c6 {[%emt 0:02:25]} 21. Bxd4 {[%emt 0:08:20]} Nd7 {[%emt 0:01:25]} 22. Qb2 {[%emt 0:01:19]} Qg6 {[%emt 0:03:40]} 23. f4 {[%emt 0:05:00]} f6 {[%emt 0:05:53]} 24. Be3 {[%emt 0:02:07]} Rbd8 {[%emt 0:02:36]} 25. Na5 {[%emt 0:01:30]} 1-0